[Event "Croatian 1B League 2022"]
[Site "Porec"]
[Date "2022.09.29"]
[Round "6.10"]
[White "Ivic, Mateo"]
[Black "Vlahov, Davor"]
[Result "1-0"]
[ECO "C02"]
[WhiteElo "2203"]
[BlackElo "2196"]
[Annotator "TA"]
[PlyCount "78"]
[EventDate "2022.09.24"]
[EventType "team-tourn"]
[EventCountry "CRO"]
[SourceTitle "playchess.com"]
[Source "ChessBase"]
[SourceQuality "1"]
[TimeControl "40/5400+30:1800+30"]

{[%evp 18,78,-13,-28,-3,-9,-12,-13,0,0,-3,-11,-6,-25,-17,-17,-17,-29,-29,-29,2,-28,0,-27,-17,-18,0,-15,33,-3,-6,-31,52,0,65,65,65,65,65,35,35,31,64,12,19,0,38,19,20,0,0,0,0,0,14,43,131,93,580,559,966,395,1658]} 1. e4 {[%emt 0:00:10]} e6 {[%emt 0:10:41]} 2. d4 {[%emt 0:00:24]} d5 {[%emt 0:00:31]} 3. e5 {[%emt 0:02:34]} c5 {[%emt 0:00:48]} 4. c3 {[%emt 0:00:18]} Nc6 {[%emt 0:00:48][%cal Bb8c6,Bc6a5,Ba5b3][%mdl 32]} 5. Nf3 {[%emt 0:00:14]} Qb6 {[%emt 0:02:58]} 6. a3 {[%emt 0:03:10]} c4 {[%emt 0:11:46]} 7. g3 {[%emt 0:01:42]} Na5 {[%emt 0:02:19]} 8. Nbd2 {[%emt 0:00:52]} Ne7 {[%emt 0:04:07]} 9. Bg2 {[%emt 0:00:48]} Bd7 {[%emt 0:03:06]} 10. O-O {[%emt 0:04:58]} Nec6 {[%emt 0:03:15] C02: French: Advance Variation.} 11. Ne1 {[%emt 0:04:00]} Be7 {[%emt 0:01:56]} 12. Nc2 {[%emt 0:03:02]} Nb3 {[%emt 0:09:49] The position is equal.} 13. Nxb3 {[%emt 0:00:31]} Qxb3 {[%emt 0:00:06]} 14. Qe2 {[%emt 0:01:35] [#]} Qb6 $146 {[%emt 0:02:37]} ({Predecessor:} 14... O-O 15. Ne3 {½-½ (15) Sax,G (2436)-Farago,I (2477) Hungary 2013}) 15. Ne3 {[%emt 0:03:11]} Na5 {[%emt 0:05:04]} 16. f4 {[%emt 0:04:34]} g6 {[%emt 0:00:37] Against f5} 17. g4 {[%emt 0:09:24]} O-O-O {[%emt 0:05:35]} 18. Rb1 {[%emt 0:14:06]} Bc6 {[%emt 0:15:58]} 19. Bd2 {[%emt 0:01:15]} h5 {[%emt 0:02:55]} 20. h3 {[%emt 0:01:14]} hxg4 {[%emt 0:01:01]} 21. hxg4 {[%emt 0:01:33]} Nb3 {[%emt 0:00:34]} 22. Be1 {[%emt 0:01:05]} Bh4 {[%emt 0:02:59]} (22... Qc7 $11 {is more appropriate.}) 23. Bxh4 {[%emt 0:01:53]} Rxh4 {[%emt 0:00:05]} 24. Kf2 {[%emt 0:01:09]} a5 {[%emt 0:01:36]} (24... Rdh8 $1 $15) 25. Rh1 {[%emt 0:01:41]} (25. Kg3 $14 Rdh8 26. g5) 25... Rdh8 {[%emt 0:00:06]} ({Black should try} 25... Rxh1 $1 $11 26. Rxh1 {[#]} Nxd4 $1 27. cxd4 Qxd4) 26. Rxh4 $14 {[%emt 0:05:07]} Rxh4 {[%emt 0:00:19]} 27. Kg3 $1 {[%emt 0:00:27]} Rh8 {[%emt 0:00:29][%cal Og6g5]} 28. Rf1 {[%emt 0:02:37]} Qd8 {[%emt 0:01:04]} 29. g5 {[%emt 0:00:27]} Kc7 {[%emt 0:03:48]} 30. Ng4 {[%emt 0:00:47]} (30. Qe1 $14) 30... b5 $11 {[%emt 0:00:47]} 31. Nh6 {[%emt 0:01:13]} Be8 {[%emt 0:01:57]} 32. Rh1 {[%emt 0:01:41]} b4 {[%emt 0:00:50]} 33. axb4 {[%emt 0:02:04]} axb4 {[%emt 0:00:05]} 34. Bf3 {[%emt 0:02:36]} Qb8 {[%emt 0:00:16]} 35. Qe3 {[%emt 0:00:45]} Rf8 {[%emt 0:05:44]} 36. Ng4 {[%emt 0:01:10][%cal Of3d5] Hoping for Bxd5!} Qa7 {[%emt 0:00:53]} (36... Qa8 $14) 37. Nf6 {[%emt 0:02:12]} Qa2 $2 {[%emt 0:00:37][%mdl 8192] [#]} (37... Kc8 $16 {is a better chance.}) 38. Bxd5 $1 $18 {[%emt 0:02:26][%mdl 512]} Qxb2 {[%emt 0:02:35]} (38... Qa6 39. Be4) 39. Bxc4 {[%emt 0:00:05]} (39. Bf3 $142 {Threatening mate with d5.} Kb6 40. Qe4) 39... bxc3 $2 {Weighted Error Value: White=0.26 (precise) /Black=0.46} (39... Qd2 40. Qf3 Na5) 1-0

[Event "Croatian 1B League 2022"]
[Site "Porec"]
[Date "2022.09.29"]
[Round "6.11"]
[White "Tomerlin, Sinisa"]
[Black "Sekelja, Marko"]
[Result "1/2-1/2"]
[ECO "A07"]
[WhiteElo "2184"]
[BlackElo "2088"]
[Annotator "TA"]
[PlyCount "82"]
[EventDate "2022.09.24"]
[EventType "team-tourn"]
[EventCountry "CRO"]
[SourceTitle "playchess.com"]
[Source "ChessBase"]
[SourceQuality "1"]
[TimeControl "40/5400+30:1800+30"]

{[%evp 13,82,-4,-1,-18,0,-21,-4,-7,-2,-8,3,12,26,-12,-2,-2,-14,-23,39,42,52,47,101,93,72,0,108,125,104,91,157,116,107,110,112,26,39,0,33,33,31,56,54,64,97,109,126,116,108,-14,-8,-83,177,-15,0,-102,-87,-196,-206,-206,-203,-195,-210,-205,-210,-194,-197,-239,-213,-234,-232]} 1. Nf3 {[%emt 0:00:04]} Nf6 {[%emt 0:00:05]} 2. g3 {[%emt 0:00:24]} g6 {[%emt 0:00:08]} 3. Bg2 {[%emt 0:00:30]} Bg7 {[%emt 0:00:10]} 4. d3 {[%emt 0:00:12]} d5 {[%emt 0:00:08]} 5. O-O {[%emt 0:00:08]} O-O {[%emt 0:00:11]} 6. Nbd2 {[%emt 0:00:27]} c6 {[%emt 0:00:59] Recently 6...Nc6 got a lot of attention.} 7. c4 {[%emt 0:03:12]} Nbd7 {[%emt 0:05:56]} 8. Qc2 {[%emt 0:12:54] A07: Réti Opening: New York and Capablanca Systems.} b6 {[%emt 0:12:02]} 9. Rb1 {[%emt 0:16:06]} Bb7 {[%emt 0:00:38]} 10. b4 {[%emt 0:01:55] [#] The position is equal.} c5 $146 {[%emt 0:01:48]} ({Predecessor:} 10... e5 11. e3 Re8 12. Bb2 Qe7 13. Rfc1 Rac8 14. c5 Ba6 15. Ne1 Qe6 16. Nb3 Bb5 {0-1 (31) Fabrin,M (2009)-Jorgensen,D (2253) Helsingor 2015}) 11. a3 {[%emt 0:05:35]} Qc7 {[%emt 0:04:07]} 12. bxc5 {[%emt 0:08:54]} Qxc5 {[%emt 0:06:32]} 13. Qa2 {[%emt 0:05:16]} dxc4 {[%emt 0:08:54]} 14. Nxc4 {[%emt 0:01:56]} Rac8 {[%emt 0:05:50]} 15. Bd2 {[%emt 0:12:40]} Qc7 {[%emt 0:03:39]} ({Black should try} 15... Bd5 $11) 16. Rfc1 $14 {[%emt 0:02:14][%cal Oc4b6] aiming for Nxb6!} Qb8 {[%emt 0:00:59]} 17. a4 {[%emt 0:02:08]} Bc6 {[%emt 0:04:34]} (17... Bd5 $14) 18. Bb4 {[%emt 0:02:50]} Nd5 {[%emt 0:02:41]} 19. Bd2 {[%emt 0:00:12]} (19. Be1 $16) 19... Qa8 {[%emt 0:00:36]} (19... N5f6 $1 $11) 20. e4 $16 {[%emt 0:00:16]} Nc7 {[%emt 0:06:11][%cal Bd5c7,Bc7a6,Ba6c5][%mdl 32]} 21. Bb4 {[%emt 0:02:46]} Rce8 {[%emt 0:01:59]} (21... Bf6 $142) 22. Bh3 {[%emt 0:04:54]} Na6 {[%emt 0:01:51]} 23. Bc3 {[%emt 0:05:29]} Bh6 {[%emt 0:06:13]} 24. Rc2 {[%emt 0:00:58]} (24. Bd2 $16 Bg7 25. Bf1) 24... Nac5 $11 {[%emt 0:02:33][%csl LRa4,LRd3]} 25. Nce5 {[%emt 0:00:33]} Bxa4 {[%emt 0:04:16] Hoping for ...Nxe5.} 26. Ng4 {[%emt 0:04:53][%cal Rg4h6]} Bg7 {[%emt 0:01:21]} 27. Bxg7 {[%emt 0:00:28]} Kxg7 {[%emt 0:00:41]} (27... Bxc2 $2 28. Bxf8 Rxf8 29. Qxc2 $18) 28. Rc4 {[%emt 0:02:48]} h5 {[%emt 0:03:14]} 29. Qa1+ {[%emt 0:01:46][%mdl 1024] White has strong compensation.} ({Much worse is} 29. Rxa4 $6 Nxa4 30. Qa1+ (30. Qxa4 $2 hxg4 31. Bxg4 Nc5 $19) 30... f6 $11) 29... f6 {[%emt 0:00:51]} 30. Ne3 {[%emt 0:01:39]} Bc6 {[%emt 0:00:46] [#]} 31. Nd4 {[%emt 0:00:21] White has more active pieces.} (31. d4 $1 $16 {[%cal Rd4c5]}) 31... Ne5 $36 {[%emt 0:02:53][%mdl 2048] Black fights for an advantage.} 32. Rc3 {[%emt 0:00:45]} (32. Rxc5 $1 $11 bxc5 33. Ne6+ Kg8 34. Qa2) 32... Bb7 $2 {[%emt 0:07:10][%mdl 8192] [#]} (32... Rd8 $17 {stays on course.} 33. Nxc6 Nxc6) 33. Rd1 $2 {[%emt 0:00:35]} ({White has to play} 33. Rxc5 $1 $18 {[%mdl 512]} bxc5 34. Ne6+ Kh8 35. Nc7 (35. Nxf8 Rxf8 36. Qa3 Nxd3 $11)) 33... Rd8 {[%emt 0:00:47]} 34. Nec2 {[%emt 0:00:23]} (34. Rxc5 $1 $11 bxc5 35. Ne6+ Kh7 36. Nxf8+ Rxf8 37. Qa3) 34... Kh7 {[%emt 0:00:53]} 35. Rxc5 {[%emt 0:00:51]} bxc5 $19 {[%emt 0:00:22] Black is clearly better.} 36. Ne6 {[%emt 0:00:01]} Rxd3 {[%emt 0:01:38]} 37. Nxf8+ {[%emt 0:00:16]} Qxf8 {[%emt 0:00:10]} 38. Rxd3 {[%emt 0:01:05]} Nxd3 {[%emt 0:00:45]} 39. Bf1 {[%emt 0:00:31]} Bxe4 {[%emt 0:02:46] And now ...Ne5 would win.} 40. f3 {[%emt 0:00:00]} Bf5 {[%emt 0:00:00] ...Ne5 is the strong threat.} ({Stronger than} 40... Bxf3 41. Bxd3 Qd8 42. Qa3 $11) 41. Ne3 {[%emt 0:00:02]} Ne5 {[%emt 0:03:01] Weighted Error Value: White=0.39/Black=0.30} 1/2-1/2

[Event "Croatian 1B League 2022"]
[Site "Porec"]
[Date "2022.09.29"]
[Round "6.12"]
[White "Tomas, Ante"]
[Black "Vlasic, Nenad"]
[Result "1-0"]
[ECO "B06"]
[WhiteElo "2137"]
[BlackElo "2106"]
[Annotator "TA"]
[PlyCount "41"]
[EventDate "2022.09.24"]
[EventType "team-tourn"]
[EventCountry "CRO"]
[SourceTitle "playchess.com"]
[Source "ChessBase"]
[SourceQuality "1"]
[TimeControl "40/5400+30:1800+30"]

{[%evp 10,41,54,50,240,237,235,235,235,242,240,180,174,172,185,176,243,209,202,179,192,160,196,188,191,162,191,159,140,141,29993,29994,29994,29995]} 1. d4 {[%emt 0:00:04]} g6 {[%emt 0:00:08]} 2. e4 {[%emt 0:00:04]} c5 {[%emt 0:00:40]} 3. dxc5 {[%emt 0:00:34]} Bg7 {[%emt 0:02:19]} 4. Nc3 {[%emt 0:03:54]} Qa5 {[%emt 0:00:12]} 5. Bd2 {[%emt 0:00:20]} Qxc5 {[%emt 0:00:16]} 6. Nd5 {[%emt 0:00:49] Threatens to win with Bb4.} Nf6 $2 {[%emt 0:02:57] B06: Modern Defence.} (6... Na6 $14) 7. Bb4 $18 {[%emt 0:02:33]} Qc6 {[%emt 0:02:20] [#]} 8. Bb5 $1 {[%emt 0:05:33][%cal Bf1b5,Bb5c6,Bc6d5][%mdl 544]} Nxd5 {[%emt 0:06:03] White is clearly better.} 9. Bxc6 {[%emt 0:00:05]} Nxb4 {[%emt 0:00:11]} 10. Bd5 {[%emt 0:01:25] [#]} Bxb2 $146 {[%emt 0:01:01]} ({Predecessor:} 10... Nxd5 11. exd5 d6 12. c3 O-O 13. f4 Nd7 14. Nf3 Nc5 15. O-O Bg4 16. h3 Bf5 {1-0 (26) Megias Gonzalez,J-Zamarbide Inarrea,C Pamplona 2000}) 11. Rb1 {[%emt 0:00:06]} Bc3+ {[%emt 0:00:20]} 12. Kf1 {[%emt 0:00:32][%cal Ob1b4] Rxb4! is the strong threat.} O-O {[%emt 0:07:06]} (12... Nxd5 {might work better.} 13. Qxd5 Nc6) 13. h4 {[%emt 0:06:31]} Nxd5 {[%emt 0:17:43]} 14. Qxd5 {[%emt 0:01:52]} Nc6 {[%emt 0:08:44]} 15. h5 {[%emt 0:03:32]} d6 {[%emt 0:07:25]} 16. hxg6 {[%emt 0:03:02]} hxg6 {[%emt 0:00:09]} 17. Qg5 {[%emt 0:11:20] aiming for Ne2.} Be6 {[%emt 0:10:02]} 18. Nf3 {[%emt 0:04:42] Qh6 would kill now.} ({Inferior is} 18. Rxb7 Bc4+ 19. Ne2 Rfb8 20. Rxb8+ Rxb8 $11) 18... Rfc8 {[%emt 0:00:44]} 19. Qh4 {[%emt 0:14:32] Threatening mate with e5.} Bxa2 $2 {[%emt 0:07:58][%mdl 8192] [#]} (19... Bg7 $16 20. a3 (20. Rxb7 Rab8 $18) (20. Ng5 Bc4+ 21. Kg1 b6 $16) 20... Rab8) 20. e5 $1 {[%emt 0:02:19][%csl Gh1][%cal Rh4h8]} Bc4+ {[%emt 0:00:40]} (20... Bxe5 21. Qh7+) 21. Kg1 {[%emt 0:00:07] Weighted Error Value: White=0.18 (very precise) /Black=0.59} 1-0

[Event "Croatian 1B League 2022"]
[Site "Porec"]
[Date "2022.09.30"]
[Round "7.1"]
[White "Draskovic, Luka"]
[Black "Dobrovoljc, Vid"]
[Result "1/2-1/2"]
[ECO "E14"]
[WhiteElo "2492"]
[BlackElo "2402"]
[Annotator "TA"]
[PlyCount "49"]
[EventDate "2022.09.24"]
[EventType "team-tourn"]
[EventCountry "CRO"]
[SourceTitle "playchess.com"]
[Source "ChessBase"]
[SourceQuality "1"]
[TimeControl "40/5400+30:1800+30"]

{[%evp 19,49,17,16,16,41,0,0,0,0,-12,-5,-18,0,-10,0,-16,9,0,10,-13,-8,-9,-13,-16,-23,-25,-20,-20,-20,-20,-21,-29]} 1. b3 {[%emt 0:00:04]} d5 {[%emt 0:09:15]} 2. Bb2 {[%emt 0:00:08]} e6 {[%emt 0:00:13]} 3. e3 {[%emt 0:02:19]} Nf6 {[%emt 0:00:28]} 4. Nf3 {[%emt 0:01:25]} Be7 {[%emt 0:12:50]} 5. c4 {[%emt 0:03:38]} O-O {[%emt 0:03:20]} 6. Nc3 {[%emt 0:00:57]} b6 {[%emt 0:13:09]} 7. cxd5 {[%emt 0:01:20]} exd5 {[%emt 0:01:34]} 8. d4 {[%emt 0:02:02]} Bb7 {[%emt 0:02:05]} 9. Bd3 {[%emt 0:00:16]} Nbd7 {[%emt 0:00:44]} 10. O-O {[%emt 0:01:00]} Re8 {[%emt 0:04:42]} 11. Rc1 {[%emt 0:01:29] E14: Queen's Indian: Classical Variation (4 e3).} (11. Ne5 {seems wilder.} Bb4 12. Rc1 Nxe5 13. dxe5 Rxe5 14. Nb5) 11... a6 {[%emt 0:01:26]} 12. Ne2 {[%emt 0:01:46] is the legacy move (12.Ne5).} Bd6 {[%emt 0:02:52]} 13. Ng3 {[%emt 0:01:06]} g6 {[%emt 0:01:25]} 14. Qc2 {[%emt 0:04:04]} Rc8 {[%emt 0:05:29]} 15. Qe2 {[%emt 0:03:35]} Ra8 {[%emt 0:02:31]} 16. Rc2 {[%emt 0:03:36]} Qe7 {[%emt 0:00:22]} 17. Rfc1 {[%emt 0:03:25][%cal Of3e5]} Rec8 {[%emt 0:02:25]} (17... c6 $5) 18. a4 {[%emt 0:13:41]} Ne4 {[%emt 0:04:26] [#]} 19. b4 $146 {[%emt 0:05:17]} ({Predecessor:} 19. Nd2 h5 20. Ngf1 Ndf6 21. f3 Nxd2 22. Qxd2 Re8 23. Bc3 {1-0 (62) Marin,M (2551)-Parligras,M (2618) Mamaia 2012}) 19... Nxg3 {[%emt 0:04:52]} 20. hxg3 {[%emt 0:00:17]} c6 {[%emt 0:00:21]} 21. b5 {[%emt 0:10:36]} cxb5 {[%emt 0:00:36]} 22. Rxc8+ {[%emt 0:00:24]} Rxc8 {[%emt 0:00:43]} 23. Rxc8+ {[%emt 0:01:15] The position is equal.} Bxc8 {[%emt 0:00:13]} 24. axb5 {[%emt 0:00:42] [#] Strongly threatening Qc2.} a5 {[%emt 0:03:30]} 25. Qc2 {[%emt 0:07:05] An even fight not without its subleties.  Weighted Error Value: White=0.10 (very precise) /Black=0.06 (flawless)} 1/2-1/2

[Event "Croatian 1B League 2022"]
[Site "Porec"]
[Date "2022.09.30"]
[Round "7.2"]
[White "Drnovsek, Gal"]
[Black "Skuhala, Jernej"]
[Result "1-0"]
[ECO "D38"]
[WhiteElo "2393"]
[BlackElo "2349"]
[Annotator "TA"]
[PlyCount "41"]
[EventDate "2022.09.24"]
[EventType "team-tourn"]
[EventCountry "CRO"]
[SourceTitle "playchess.com"]
[Source "ChessBase"]
[SourceQuality "1"]
[TimeControl "40/5400+30:1800+30"]

{[%evp 12,41,22,2,23,15,14,14,49,56,60,39,60,41,102,68,85,56,69,61,92,42,50,43,189,190,417,430,442,441,769,743]} 1. d4 {[%emt 0:00:03]} Nf6 {[%emt 0:00:02]} 2. c4 {[%emt 0:00:06]} e6 {[%emt 0:00:04]} 3. Nf3 {[%emt 0:00:09]} d5 {[%emt 0:00:02]} 4. Nc3 {[%emt 0:00:45]} Bb4 {[%emt 0:00:02]} 5. Qa4+ {[%emt 0:01:13]} Nc6 {[%emt 0:00:02]} 6. e3 {[%emt 0:00:09]} O-O {[%emt 0:00:35]} 7. Bd2 {[%emt 0:00:33]} Bd7 {[%emt 0:01:47][%cal Oc6d4] [#] Strongly threatening ...Nxd4! D38: Queen's Gambit Declined: Ragozin Defence (4 Nf3 Bb4).} 8. Qc2 {[%emt 0:00:47]} dxc4 {[%emt 0:22:04]} 9. Bxc4 {[%emt 0:01:08]} Qe7 {[%emt 0:03:27] The position is equal.} 10. O-O {[%emt 0:09:01]} e5 {[%emt 0:12:21]} 11. d5 {[%emt 0:05:44] [#]} (11. a3 {with more complications.} Bd6 12. Ng5 g6 13. d5) 11... Nd8 $146 {[%emt 0:01:52]} ({Predecessor:} 11... Nb8 12. e4 c6 13. Bg5 h6 14. dxc6 Bxc6 15. Bxf6 Qxf6 16. Nd5 Bxd5 17. Bxd5 Nc6 18. Bxc6 bxc6 {1-0 (43) Petrosyan,M (2581)-Garayev,K (2404) Manavgat 2018}) 12. e4 {[%emt 0:11:11]} Bg4 {[%emt 0:02:55]} ({Black should try} 12... a6 $14) 13. Qd3 {[%emt 0:03:20]} c6 {[%emt 0:03:32]} 14. Rfe1 {[%emt 0:06:31]} b5 {[%emt 0:05:30]} 15. Bb3 {[%emt 0:01:23]} a6 {[%emt 0:00:19]} 16. Bg5 {[%emt 0:09:39]} (16. Nh4 $16) 16... Qd6 {[%emt 0:05:29]} 17. h3 {[%emt 0:05:27]} Bd7 {[%emt 0:06:05] [#] Black cannot hold the game after this.} (17... Bxf3 $14 18. Qxf3 c5) 18. Bf4 $1 $18 {[%emt 0:08:22]} Nxd5 $2 {[%emt 0:11:32]} (18... Re8 {was called for.}) 19. Bxe5 {[%emt 0:04:38]} (19. Nxd5 cxd5 20. Bxe5 Qg6 $16) ({Worse is} 19. exd5 exf4 20. Ne4 Bf5 $11) 19... Qg6 {[%emt 0:00:29]} 20. Bg3 {[%emt 0:03:04] Threatens to win with Ne5.} Bc5 {[%emt 0:05:37]} (20... Nxc3 $142 21. bxc3 (21. Qxd7 Na4 $16) 21... Bc5) 21. Ne5 {[%emt 0:02:58] Weighted Error Value: White=0.10 (very precise) /Black=0.57} 1-0

[Event "Croatian 1B League 2022"]
[Site "Porec"]
[Date "2022.09.30"]
[Round "7.3"]
[White "Segovic, Goran"]
[Black "Golubovic, Boris"]
[Result "1/2-1/2"]
[ECO "B90"]
[WhiteElo "2304"]
[BlackElo "2360"]
[Annotator "TA"]
[PlyCount "48"]
[EventDate "2022.09.24"]
[EventType "team-tourn"]
[EventCountry "CRO"]
[SourceTitle "playchess.com"]
[Source "ChessBase"]
[SourceQuality "1"]
[TimeControl "40/5400+30:1800+30"]

{[%evp 19,48,10,20,0,0,0,0,0,0,0,0,0,30,16,21,20,20,-26,0,-6,2,-12,-10,-19,0,0,0,0,7,33,40]} 1. e4 {[%emt 0:00:04]} c5 {[%emt 0:07:08]} 2. Nf3 {[%emt 0:00:06]} d6 {[%emt 0:00:21]} 3. d4 {[%emt 0:01:05]} cxd4 {[%emt 0:00:07]} 4. Nxd4 {[%emt 0:00:05]} Nf6 {[%emt 0:00:06]} 5. Nc3 {[%emt 0:00:05]} a6 {[%emt 0:00:04]} 6. Be3 {[%emt 0:00:39]} e5 {[%emt 0:00:40]} 7. Nb3 {[%emt 0:00:17]} Be7 {[%emt 0:00:06]} 8. f3 {[%emt 0:01:10]} Be6 {[%emt 0:03:44]} 9. Qd2 {[%emt 0:02:02]} h5 {[%emt 0:00:55]} 10. O-O-O {[%emt 0:00:57]} Nbd7 {[%emt 0:01:54]} 11. Nd5 {[%emt 0:03:40] B90: Sicilian Najdorf: Unusual White 6th moves, 6 Be3 Ng4 and 6 Be3 e5.} Nxd5 {[%emt 0:12:33] 11...Nxd5 is better than 11...Bxd5.} 12. exd5 {[%emt 0:00:16]} Bf5 {[%emt 0:00:06]} 13. Bd3 {[%emt 0:00:46] The position is equal.} Bxd3 {[%emt 0:04:08]} 14. Qxd3 {[%emt 0:00:27]} Rc8 {[%emt 0:12:40]} 15. Kb1 {[%emt 0:03:21]} Qc7 {[%emt 0:04:39]} 16. Rc1 {[%emt 0:09:10] [#]} Qc4 $146 {[%emt 0:04:13]} (16... Nb6 {is more complex.} 17. c4 Nxc4 18. Rc3 O-O) ({Predecessor:} 16... b5 17. Nd2 O-O 18. g4 hxg4 19. fxg4 Qb7 20. Ne4 Rc4 21. Rhg1 Nf6 22. Nxf6+ Bxf6 {0-1 (35) Lopez Gonzalez,A (2342)-Ortiz Suarez,I (2578) San Salvador 2016}) 17. Qxc4 {[%emt 0:13:21]} Rxc4 {[%emt 0:01:07]} 18. Nd2 {[%emt 0:02:37]} (18. Na5 {might be stronger.} Rc7 19. c4) 18... Rc8 {[%emt 0:01:10]} 19. c4 {[%emt 0:02:06]} a5 {[%emt 0:06:41]} 20. f4 {[%emt 0:08:09]} f5 {[%emt 0:03:45]} 21. Nf3 {[%emt 0:06:13]} e4 {[%emt 0:11:18]} 22. Nd4 {[%emt 0:00:44]} g6 {[%emt 0:00:06]} 23. Nb5 {[%emt 0:02:06]} h4 {[%emt 0:04:54]} 24. b3 {[%emt 0:03:09]} Kf7 {[%emt 0:01:07] Weighted Error Value: White=0.08 (flawless) /Black=0.08 (flawless)} 1/2-1/2

[Event "Croatian 1B League 2022"]
[Site "Porec"]
[Date "2022.09.30"]
[Round "7.4"]
[White "Petrov, Jole"]
[Black "Makovec, Bruno"]
[Result "0-1"]
[ECO "E04"]
[WhiteElo "2370"]
[BlackElo "2258"]
[Annotator "TA"]
[PlyCount "80"]
[EventDate "2022.09.24"]
[EventType "team-tourn"]
[EventCountry "CRO"]
[SourceTitle "playchess.com"]
[Source "ChessBase"]
[SourceQuality "1"]
[TimeControl "40/5400+30:1800+30"]

{[%evp 9,80,13,17,24,22,0,11,-6,18,14,15,7,12,0,9,11,40,33,29,30,22,18,26,32,40,0,0,0,0,0,0,0,29,22,18,-45,-8,-8,-10,-12,-14,0,0,-44,14,0,18,21,0,0,0,0,-3,-73,-83,-284,-287,-408,-318,-913,-913,-904,-882,-819,-810,-704,-74,-74,-74,-139,-128,-783,-764]} 1. d4 {[%emt 0:00:05]} Nf6 {[%emt 0:00:07]} 2. c4 {[%emt 0:00:40]} e6 {[%emt 0:00:04]} 3. Nf3 {[%emt 0:00:07]} d5 {[%emt 0:00:06]} 4. g3 {[%emt 0:01:09]} dxc4 {[%emt 0:00:13]} 5. Bg2 {[%emt 0:00:11]} c6 {[%emt 0:00:03]} 6. a4 {[%emt 0:04:43][%mdl 1024] White has compensation. E04: Open Catalan: 5 Nf3.} Bb4+ {[%emt 0:02:06]} 7. Nc3 {[%emt 0:00:33]} (7. Bd2 $5 {[%cal Rd2b4]} a5 8. Qc2 $11) 7... Nd5 {[%emt 0:05:59]} 8. Bd2 {[%emt 0:06:07] [#] The position is equal.} a5 $146 {[%emt 0:12:40]} ({Predecessor:} 8... b5 9. O-O a6 10. axb5 Bxc3 11. bxc3 cxb5 12. Qb1 Bb7 13. Re1 Nd7 14. e4 Ne7 15. Bc1 h6 16. Nd2 Nb6 17. Ba3 {½-½ (17) Gurevich,D (2540)-Novikov,I (2550) Toronto 1998}) 9. e4 {[%emt 0:27:09]} Ne7 {[%emt 0:16:55][%cal Oe6e5]} 10. Qe2 {[%emt 0:05:28]} b6 {[%emt 0:04:43]} 11. O-O {[%emt 0:03:04]} O-O {[%emt 0:00:23]} 12. Rfd1 {[%emt 0:01:48]} ({But not} 12. Qxc4 Ba6 13. Qb3 Bxf1 14. Rxf1 Nd7 $17) 12... Nd7 {[%emt 0:06:53]} 13. Qxc4 {[%emt 0:15:10]} Ba6 {[%emt 0:07:52]} 14. Qa2 {[%emt 0:00:15]} Rc8 {[%emt 0:11:17]} 15. Be3 {[%emt 0:03:03]} Qc7 {[%emt 0:01:31]} 16. Rac1 {[%emt 0:00:12]} Qb8 {[%emt 0:00:30]} 17. h3 {[%emt 0:04:44]} (17. Ng5 {with more complications.} Nf6 18. e5 Nfd5 19. Qb1) 17... h6 {[%emt 0:00:57]} 18. Nd2 {[%emt 0:09:24]} e5 {[%emt 0:05:28]} 19. f4 {[%emt 0:00:29]} exd4 {[%emt 0:06:19]} 20. Bxd4 {[%emt 0:00:02]} Nc5 {[%emt 0:00:50] White must now prevent ...Nd3.} 21. Nc4 {[%emt 0:01:12]} Rcd8 {[%emt 0:02:56]} 22. Ne5 {[%emt 0:06:30] [#]} (22. Kh2 $11) 22... Nd3 $1 {[%emt 0:04:42]} 23. Nxd3 {[%emt 0:02:46] Threatens to win with Ne5.} Rxd4 {[%emt 0:01:18]} 24. Nxb4 {[%emt 0:00:08]} (24. Ne5 {is more complex.} Bc5 25. Kh1 Bc8 26. Qb1) 24... Rxd1+ {[%emt 0:00:48]} 25. Nxd1 {[%emt 0:01:26]} axb4 {[%emt 0:00:08]} 26. Ne3 {[%emt 0:04:43]} Qd6 {[%emt 0:02:51]} (26... Rd8 $15) 27. Qb3 {[%emt 0:00:40]} c5 {[%emt 0:01:47]} 28. Rd1 {[%emt 0:00:41] Inhibits Qd2.} Qc7 {[%emt 0:02:01]} 29. Nd5 {[%emt 0:00:30]} Nxd5 {[%emt 0:00:15]} 30. Qxd5 {[%emt 0:00:01]} c4 {[%emt 0:01:03]} 31. Bf1 {[%emt 0:00:25]} (31. e5 $1 $11 {keeps the balance.}) 31... Rc8 $1 $17 {[%emt 0:00:42]} 32. b3 $2 {[%emt 0:00:20] [#]} (32. Kf2 $17) 32... Qa7 $1 $19 {[%emt 0:01:04] Strongly threatening ...b5+.} 33. bxc4 {[%emt 0:02:42]} (33. Kh2 {was the only chance.} cxb3 34. Bg2) 33... Bxc4 {[%emt 0:01:04]} 34. Qd7 {[%emt 0:00:28]} (34. Qd4 Bxf1 35. Kxf1 Qxa4 36. Kf2) 34... Qxd7 {[%emt 0:00:58]} 35. Rxd7 {[%emt 0:00:01]} Bxf1 {[%emt 0:00:44]} 36. Kxf1 {[%emt 0:00:06] KR-KR} b3 {[%emt 0:00:26][%cal Bb4b3,Bb3b2][%mdl 32]} 37. Rd2 {[%emt 0:01:13]} Rc1+ $2 {[%emt 0:00:41]} (37... Rc2 $19 {is more deadly.} 38. Rd6 b2 39. Rxb6 Rc1+ 40. Ke2 b1=Q 41. Rxb1 Rxb1) 38. Ke2 $17 {[%emt 0:00:03] [#]} Rc3 $1 {[%emt 0:00:31]} 39. Rd8+ {[%emt 0:00:00]} ({White should play} 39. Rd4) 39... Kh7 {[%emt 0:00:00] Hoping for ...b2.} 40. Kd2 $2 {[%emt 0:00:00][%mdl 8192]} (40. Rd4 $17) 40... b2 {[%emt 0:00:00] Weighted Error Value: White=0.57/Black=0.28 (precise)} 0-1